bitfinex/quotes_ETHUSD_20251212
["timestamp","ask_amount","ask_price","bid_price","bid_amount"]
[1765555388140,7.58505968,3071.7,3071.1,0.002]
[1765555388463,0.77746597,3071.6,3070.3,6.51401443]
[1765555388756,0.484,3071.6,3070.3,9.85602514]
[1765555388917,0.484,3071.5,3070.3,6.51401443]
[1765555389116,4.315407,3071.4,3070.3,6.51401443]
[1765555389538,0.484,3071.3,3070.1,9.77161978]
[1765555389851,9.933784,3071.2,3070.1,3.257174]
[1765555390054,9.933784,3071.2,3070.1,0.03257222]
[1765555390055,2.200644,3071.2,3070.1,0.03257222]
[1765555390356,0.1896,3071.8,3070.0,10.77196226]
[1765555390556,0.1896,3071.8,3070.2,0.085]
[1765555390744,0.1896,3072.4,3070.6,0.2028]
[1765555391079,0.1896,3072.4,3070.5,0.61504327]
[1765555391080,0.1896,3072.4,3070.5,0.58247529]
[1765555391255,4.636884,3072.3,3070.5,0.002]
[1765555391421,0.58047529,3072.0,3070.5,0.002]
[1765555391752,7.757997,3072.1,3070.5,0.002]
[1765555391955,0.58047529,3071.8,3070.5,0.002]
[1765555392116,0.58047529,3071.6,3070.5,0.002]
[1765555392318,3.181312,3071.6,3070.5,0.002]
[1765555392519,0.59,3071.6,3070.5,0.97930321]
[1765555392726,0.484,3071.5,3070.5,0.97930321]
[1765555393450,0.484,3071.5,3070.0,1.0]
[1765555393451,3.25595024,3071.3,3070.0,1.0]
[1765555393654,0.1896,3070.1,3070.0,1.0]
[1765555393862,0.1896,3070.1,3070.0,0.40086166]
[1765555394017,0.6736,3070.1,3070.0,3.65819065]
[1765555394221,0.58047529,3071.2,3070.0,3.65819065]
[1765555394447,0.484,3070.7,3070.0,6.91551964]
[1765555394646,0.484,3071.5,3070.0,10.17284863]
[1765555394864,1.075,3071.5,3070.0,13.43017762]
[1765555395067,7.254917,3071.4,3070.0,10.17284863]
[1765555395257,1.075,3071.5,3070.0,10.17284863]
[1765555395258,5.209745,3071.2,3070.0,10.17284863]
[1765555395458,3.563004,3071.0,3070.0,6.91551964]
[1765555395946,0.484,3070.9,3070.0,3.65819065]
[1765555396181,0.484,3070.9,3070.0,6.91551964]
[1765555396350,0.484,3070.9,3070.0,0.40086166]
[1765555396351,0.1896,3070.1,3070.0,0.40086166]
[1765555396551,3.215862,3070.1,3070.0,0.40086166]
[1765555396750,4.0214482,3070.1,3070.0,0.40086166]
[1765555396974,0.484,3070.8,3070.0,3.65819065]
[1765555397184,0.6736,3071.6,3070.0,13.43017762]
[1765555397386,0.1896,3071.6,3070.1,8.86632183]
[1765555397678,0.484,3072.0,3070.2,16.86605929]
[1765555397842,3.25462951,3072.6,3070.2,16.86605929]
[1765555397843,0.484,3072.7,3070.7,8.66152183]
[1765555398045,1.2646,3073.3,3071.4,0.58047529]
[1765555398449,0.6736,3073.3,3071.9,8.66152183]
[1765555398652,0.1896,3074.7,3072.5,8.66152183]
[1765555398653,0.1896,3074.2,3072.5,8.66152183]
[1765555398857,0.1896,3074.2,3072.0,0.8563]
[1765555399051,3.79387488,3074.1,3072.0,0.6515]
[1765555399256,0.39834749,3074.0,3072.1,1.13610218]
[1765555399458,0.1896,3075.8,3073.2,13.01574904]
[1765555399656,1.11565569,3074.6,3072.9,3.25418088]
[1765555399892,1.11565569,3074.6,3072.2,3.8011669]
[1765555399893,11.31093,3074.5,3073.1,3.25404314]
[1765555400073,28.085707,3074.3,3072.6,3.25456583]
[1765555400275,0.62113362,3074.4,3072.0,0.0605]
[1765555400276,0.405504,3073.9,3072.0,0.0605]
[1765555400500,8.325912,3073.5,3072.0,0.0605]
[1765555400665,2.589421,3073.5,3072.1,3.25502711]
[1765555400863,20.177602,3073.3,3072.2,3.25497738]
[1765555401061,0.04067421,3073.2,3072.3,3.2547897]
[1765555401364,0.6535,3073.4,3071.6,3.25559547]
[1765555401547,3.29458842,3073.3,3071.8,6.51084054]
[1765555401748,7.976786,3073.1,3071.8,3.25542027]
[1765555401948,17.444675,3072.7,3070.8,1.07095218]
[1765555402149,2.329449,3072.5,3071.7,3.25548941]
[1765555402348,2.329449,3072.5,3071.5,3.25571833]
[1765555402582,2.329449,3072.5,3071.0,3.25617546]
[1765555402583,3.288549,3072.4,3071.0,3.25617546]
[1765555402767,3.288549,3072.4,3068.4,1.64797099]
[1765555402768,1.02666542,3072.3,3070.5,3.25678368]
[1765555402966,1.05137529,3072.3,3070.6,0.087]
[1765555403152,2.71225,3072.1,3070.6,0.087]
[1765555403353,0.0406901,3072.0,3070.6,0.087]
[1765555403584,5.699155,3071.8,3070.7,3.25658644]
[1765555403759,10.921256,3071.6,3070.7,3.25658644]
[1765555403963,0.1874,3071.9,3070.0,0.40086166]
[1765555403964,1.72789173,3071.5,3070.0,0.40086166]
[1765555404163,30.405504,3071.4,3070.0,0.40086166]
[1765555404365,0.405504,3071.0,3070.0,0.40086166]
[1765555404684,0.405504,3071.0,3061.9,3.26586407]
[1765555404685,0.05,3065.9,3061.9,3.26586407]
[1765555404847,0.405504,3066.3,3062.6,0.00702281]
[1765555404848,0.405504,3065.2,3062.6,0.00702281]
[1765555405046,0.405504,3065.0,3063.4,3.26229449]
[1765555405290,3.265438,3064.7,3063.0,3.26467492]
[1765555405473,3.265438,3065.4,3063.3,8.69239087]
[1765555405774,0.405504,3065.7,3063.5,8.69239087]
[1765555405976,6.047637,3065.8,3064.1,8.69239087]
[1765555406183,0.4709,3065.7,3063.7,8.69239087]
[1765555406350,7.589375,3065.6,3063.4,9.7930404]
[1765555406546,7.589375,3065.6,3063.4,6.5286936]
[1765555406774,5.886353,3065.3,3063.4,6.5286936]
[1765555406976,7.271326,3065.4,3063.8,8.69239087]
[1765555407180,6.865326,3065.4,3062.1,0.62471625]
[1765555407380,8.674247,3064.9,3063.3,3.26445336]
[1765555407579,5.814345,3065.2,3063.4,8.72503433]
[1765555407757,5.814345,3065.2,3063.5,0.87250343]
[1765555407758,3.265438,3065.2,3063.5,0.87250343]
[1765555407963,3.265438,3065.2,3063.6,7.26617441]
[1765555408163,3.265438,3065.2,3063.7,0.58047529]
[1765555408383,3.265438,3065.2,3063.6,7.26617441]
[1765555408384,3.265438,3065.0,3063.5,0.87250343]
[1765555408692,3.265438,3065.0,3062.9,13.7958327]
[1765555408693,0.594,3064.9,3062.9,13.7958327]
[1765555408856,11.795149,3064.7,3063.0,1.43898327]
[1765555409171,3.265438,3064.8,3063.3,7.26617441]
[1765555409373,11.042144,3065.2,3063.3,7.26617441]
[1765555409687,10.93184004,3065.2,3063.5,3.26424024]
[1765555409992,10.368802,3065.0,3063.5,3.26424024]
[1765555410198,3.265438,3064.8,3063.6,0.32642402]
[1765555410505,3.265438,3065.0,3063.6,0.32642402]
[1765555410668,3.265438,3064.9,3063.8,7.26617441]
[1765555410856,3.66711009,3066.0,3063.6,0.32642402]
[1765555410857,0.6583,3066.4,3064.8,7.26617441]
[1765555411195,0.01622797,3067.7,3063.9,0.594]
[1765555411196,3.265438,3066.6,3065.3,7.26617441]
[1765555411399,0.594,3067.2,3063.6,0.32642402]
[1765555411400,3.265438,3066.8,3064.0,0.40513183]
[1765555411565,0.594,3067.2,3063.6,0.32642402]
[1765555411566,7.556589,3066.4,3064.4,6.5265631]
[1765555411761,6.4823959,3066.3,3064.5,1.37927375]
[1765555412091,15.535017,3066.2,3064.5,1.37927375]
[1765555412294,7.5296,3066.1,3064.8,7.26617441]
[1765555412595,7.5296,3066.1,3064.5,1.37927375]
[1765555412596,19.38931,3066.1,3064.5,1.37927375]
[1765555412796,3.265438,3065.9,3064.5,1.37927375]
[1765555413017,3.265438,3065.7,3064.3,3.26337054]
[1765555413160,3.265438,3065.7,3064.1,3.85859573]
[1765555413512,3.265438,3065.7,3062.7,0.01622797]
[1765555413513,3.265438,3065.2,3062.2,3.26557886]
[1765555413692,11.723433,3065.5,3062.2,3.26557886]
[1765555413693,5.910374,3064.9,3062.6,7.26617441]
[1765555413988,0.3736338,3065.8,3062.6,7.26617441]
[1765555413989,3.265438,3065.4,3063.2,0.58047529]
[1765555414208,3.265438,3065.2,3063.6,7.26617441]
[1765555414860,9.39205687,3065.7,3063.6,7.26617441]
[1765555415206,9.150866,3065.5,3063.3,0.595]
[1765555415495,6.079195,3065.5,3063.6,7.26617441]
[1765555415804,7.311145,3065.9,3064.1,7.26617441]
[1765555416011,6.998731,3065.9,3063.8,0.58047529]
[1765555416299,0.4709,3066.2,3064.0,0.594]
[1765555416300,10.791662,3065.7,3064.0,0.594]
[1765555416512,3.265438,3065.7,3064.0,0.594]
[1765555416677,14.365531,3065.5,3063.8,0.594]
[1765555416999,5.515068,3065.5,3063.8,0.594]
[1765555417199,13.412805,3065.3,3063.8,0.594]
[1765555417363,3.265438,3065.3,3063.8,0.594]
[1765555417688,3.6669548,3066.2,3063.8,0.594]
[1765555417689,0.1874,3066.5,3065.0,7.26617441]
[1765555417911,0.1874,3066.5,3065.1,0.594]
[1765555418072,0.4709,3068.0,3066.0,7.26617441]
[1765555418389,2.02515,3067.8,3063.9,20.62149269]
[1765555418598,0.51164448,3067.9,3065.3,7.26617441]
[1765555418599,3.594913,3067.6,3065.3,7.26617441]
[1765555418799,2.011315,3067.7,3065.4,0.594]
[1765555419005,0.04074846,3067.6,3065.4,0.594]
[1765555419158,0.4709,3068.0,3065.4,1.17447529]
[1765555419361,0.4709,3067.9,3065.9,0.58047529]
[1765555419600,0.01622797,3068.7,3066.4,0.58047529]
[1765555419601,0.4709,3068.5,3066.4,0.58047529]
[1765555419758,0.4709,3068.5,3066.3,7.26617441]
[1765555419759,0.4709,3068.5,3066.9,0.58047529]
[1765555419961,0.1874,3068.4,3066.5,0.594]
[1765555420669,4.794934,3068.2,3066.0,13.0463144]
[1765555420898,3.5122,3068.0,3066.4,0.594]
[1765555421074,0.4709,3068.2,3066.4,0.594]
[1765555421265,0.7814,3068.4,3066.4,0.594]
[1765555421266,6.06839,3068.0,3066.4,0.594]
[1765555421466,7.707284,3067.8,3066.4,0.594]
[1765555421677,7.707284,3067.8,3066.5,9.78314037]
[1765555421678,2.01209,3067.8,3066.5,9.78314037]
[1765555421875,0.4709,3068.0,3066.5,13.04418716]
[1765555422198,0.4709,3068.0,3066.5,9.78314037]
[1765555422399,4.04052093,3068.4,3066.5,16.30523395]
[1765555422400,0.7814,3068.4,3066.5,16.30523395]
[1765555422585,0.594,3068.4,3066.6,7.8466497]
[1765555422791,0.4709,3069.4,3067.1,7.26617441]
[1765555422975,0.4709,3069.4,3067.6,7.26617441]
[1765555423174,0.04072589,3069.3,3067.3,0.58047529]
[1765555423389,2.285765,3069.2,3066.7,2.41518837]
[1765555423578,2.285765,3069.2,3067.1,0.58047529]
[1765555423579,0.23264909,3069.1,3067.1,0.58047529]
[1765555423777,0.51162722,3069.2,3067.4,7.26617441]
[1765555423978,0.4709,3069.2,3067.5,0.592]
[1765555424179,3.93115,3069.0,3067.5,0.592]
[1765555424380,3.93115,3069.0,3067.0,13.04206064]
[1765555424381,0.0407312,3068.9,3067.0,13.04206064]
[1765555424581,0.4709,3068.9,3067.2,7.26617441]
[1765555424883,5.173896,3069.4,3067.3,1.36629273]
[1765555425085,0.4709,3069.4,3067.3,1.36629273]
[1765555425287,2.8201,3069.3,3067.7,7.26617441]
[1765555425468,0.1874,3069.6,3067.8,1.17247529]
[1765555425670,0.1874,3069.6,3068.2,7.26617441]
[1765555426071,0.1874,3069.6,3068.0,0.58047529]
[1765555426270,0.04072324,3069.5,3068.0,0.58047529]
[1765555426513,8.05789424,3069.5,3068.1,0.592]
[1765555426691,7.661276,3069.3,3068.1,0.592]
[1765555427015,0.04072722,3069.2,3067.9,9.77867595]
[1765555427303,0.04072855,3069.1,3067.9,9.77867595]
[1765555427505,6.70291493,3069.6,3067.9,9.77867595]
[1765555427506,5.99344,3069.4,3068.0,0.592]
[1765555427705,6.018946,3069.1,3068.1,6.51869234]
[1765555427877,3.72876432,3069.5,3067.1,0.592]
[1765555427878,3.283384,3068.9,3067.1,0.592]
[1765555428073,0.01622797,3068.5,3067.1,0.592]
[1765555428304,0.01622797,3068.5,3066.4,3.26112416]
[1765555428506,0.6583,3068.4,3066.8,3.26068076]
[1765555428670,8.913851,3068.2,3067.5,3.25990971]
[1765555428874,5.890214,3068.2,3067.5,3.25990971]
[1765555429103,6.438906,3068.0,3066.5,0.592]
[1765555429282,4.89529,3067.8,3066.6,3.26088778]
[1765555429482,0.04074713,3067.7,3066.7,3.26074525]
[1765555429800,3.784529,3067.5,3066.2,0.592]
[1765555430107,0.00831952,3067.4,3066.2,0.592]
[1765555430302,0.00831952,3067.4,3066.3,7.26617441]
[1765555430493,0.00831952,3067.4,3066.4,1.36629273]
[1765555430801,0.00831952,3067.4,3066.5,0.592]
[1765555430990,0.00831952,3067.4,3066.4,1.36629273]
[1765555431175,0.00831952,3067.4,3066.6,0.592]
[1765555431700,0.00831952,3067.4,3066.7,9.78250236]
[1765555431902,0.00831952,3067.4,3066.7,14.40688162]
[1765555432698,0.00831952,3067.4,3066.7,9.78250236]
[1765555433088,0.00831952,3067.4,3066.8,0.592]
[1765555433884,0.00831952,3067.4,3066.9,9.78186441]
[1765555435986,0.04073386,3068.7,3067.0,0.58047529]
[1765555436186,0.6347,3068.8,3067.0,0.58047529]
[1765555436391,0.49273386,3068.7,3067.1,1.68835826]
[1765555436576,0.49273386,3068.7,3066.9,16.30310735]
[1765555436577,10.67525,3068.6,3066.9,9.78186441]
[1765555437083,28.970545,3068.4,3066.9,9.78186441]
[1765555437292,0.04073917,3068.3,3066.9,3.26062147]
[1765555437579,2.07036,3066.9,3065.7,3.26186632]
[1765555437782,0.225306,3066.8,3065.6,13.04801668]
[1765555437979,0.1827,3067.0,3065.6,16.31002085]
[1765555437980,0.6347,3067.0,3065.6,16.31002085]
[1765555438197,6.775102,3066.9,3065.6,13.04801668]
[1765555438516,0.452,3066.8,3065.6,13.04801668]
[1765555439123,0.452,3066.8,3065.6,10.37801251]
[1765555439292,0.452,3066.8,3065.6,13.64001668]
[1765555439497,0.452,3066.8,3065.6,15.00401835]
[1765555439686,0.452,3066.8,3065.6,11.74201418]
[1765555440116,0.452,3066.8,3065.6,15.00401835]
[1765555440421,0.452,3066.8,3065.6,11.74201418]
[1765555440622,0.452,3066.8,3065.6,15.00401835]
[1765555440913,2.13528,3065.5,3062.8,3.26489116]
[1765555441231,13.49498533,3066.8,3062.9,0.592]
[1765555441232,0.98597929,3065.6,3062.9,0.592]
[1765555441434,28.970545,3065.3,3062.9,0.592]
[1765555441586,28.970545,3065.1,3062.9,0.592]
[1765555441941,11.614126,3064.9,3063.0,9.74431927]
[1765555442086,5.5645,3064.5,3063.0,9.74431927]
[1765555442440,4.477328,3064.5,3063.0,6.47954618]
[1765555442735,0.01622797,3064.6,3063.0,6.47954618]
[1765555442736,2.627314,3064.3,3063.0,9.74431927]
[1765555442892,2.627314,3064.3,3063.0,3.21477309]
[1765555443083,10.271452,3064.1,3063.0,3.21477309]
[1765555443376,8.616685,3064.1,3063.0,3.21477309]
[1765555443582,28.970545,3063.9,3063.0,3.21477309]
[1765555443810,0.4534,3064.0,3062.8,6.52989737]
[1765555444013,0.1852,3064.4,3062.8,16.91685621]
[1765555444309,3.465331,3064.3,3062.8,9.79488365]
[1765555444511,15.943691,3064.2,3062.8,6.52989737]
[1765555444709,9.283111,3064.0,3062.8,6.52989737]
[1765555444914,0.1852,3064.4,3062.8,13.05986993]
[1765555445220,2.636782,3064.2,3062.8,9.79488365]
[1765555445386,5.542041,3064.2,3062.8,9.79488365]
[1765555445585,0.4534,3064.1,3062.8,6.52989737]
[1765555445889,2.002673,3064.1,3062.8,0.65298974]
[1765555446090,0.4534,3064.1,3062.5,0.002]
[1765555446290,0.4534,3064.0,3062.5,0.002]
[1765555446724,0.4534,3064.8,3062.6,0.03265199]
[1765555446892,0.1852,3064.5,3062.8,7.27314874]
[1765555447220,0.46962797,3065.8,3062.9,1.17247529]
[1765555447514,10.020506,3065.6,3063.0,0.7945624]
[1765555447693,0.4534,3065.7,3063.8,7.27314874]
[1765555447893,13.303902,3065.5,3063.9,13.05525636]
[1765555448219,4.537496,3065.5,3063.9,6.52762818]
[1765555448517,0.4534,3065.4,3063.9,16.31907045]
[1765555448817,0.4534,3065.3,3063.9,10.38344227]
[1765555449122,0.4534,3065.3,3063.9,13.05525636]
[1765555449306,2.1501,3065.2,3063.9,9.79144227]
[1765555449509,0.4534,3065.3,3063.9,13.05525636]
[1765555449716,8.669275,3065.2,3063.9,9.79144227]
[1765555450037,4.421883,3065.1,3063.4,9.7930404]
[1765555450243,12.688327,3065.0,3063.4,9.7930404]
[1765555450537,0.405504,3064.8,3063.4,6.5286936]
[1765555450735,15.13417,3064.6,3063.4,6.5286936]
[1765555450939,22.347758,3064.4,3062.5,0.594]
[1765555451090,0.1852,3063.5,3063.2,3.26447442]
[1765555451427,0.4534,3063.4,3063.0,3.26476561]
[1765555451739,0.4534,3063.4,3063.1,3.26465818]
[1765555451902,0.1852,3063.5,3062.5,0.002]
[1765555452221,0.1852,3063.9,3062.5,0.002]
[1765555452385,0.1852,3064.3,3062.6,0.592]
[1765555452793,0.1852,3064.3,3062.8,0.58047529]
[1765555453113,0.6386,3064.3,3062.9,0.7853624]
[1765555453313,2.166316,3064.2,3062.5,0.002]
[1765555453515,4.565681,3064.1,3062.5,0.002]
[1765555453813,0.4534,3064.2,3062.5,0.58247529]
[1765555454017,7.835393,3064.1,3062.6,13.060798]
[1765555454187,5.736765,3063.9,3062.6,9.7955985]
[1765555454392,2.097649,3063.9,3062.6,6.530399]
[1765555454694,8.552352,3063.7,3062.6,3.2651995]
[1765555454890,0.4534,3063.8,3062.6,9.7955985]
[1765555455101,0.4534,3063.7,3062.6,6.530399]
[1765555455429,5.804737,3063.6,3062.6,9.7955985]
[1765555455725,0.6258137,3063.6,3062.6,13.060798]
[1765555455927,0.4534,3063.7,3062.6,9.7955985]
[1765555456131,0.4534,3063.7,3062.5,0.002]
[1765555456332,9.935254,3063.6,3062.5,0.002]
[1765555456637,7.449707,3063.6,3062.5,0.002]
[1765555456787,28.970545,3063.4,3062.5,0.002]
[1765555457095,1.03387529,3063.5,3062.5,0.002]
[1765555457096,0.1852,3062.6,3062.5,0.002]
[1765555457523,4.193937,3063.3,3062.5,0.002]
[1765555457729,0.6386,3063.4,3062.5,0.002]
[1765555457926,0.1852,3063.4,3062.5,0.002]
[1765555458126,0.4534,3063.3,3062.5,0.002]
[1765555458305,0.58047529,3063.1,3062.5,0.002]
[1765555458668,0.58047529,3063.1,3062.3,0.003]
[1765555458669,18.970371,3062.9,3062.3,0.003]
[1765555458840,20.131914,3062.7,3062.2,1e-08]
[1765555459009,0.4534,3062.6,3062.2,1e-08]
[1765555459805,0.4534,3063.1,3062.2,1e-08]
[1765555460026,1.0454,3063.0,3062.2,1e-08]
[1765555460219,2.557101,3062.8,3062.2,1e-08]
[1765555460429,6.759043,3062.7,3062.2,1e-08]
[1765555460618,0.4892,3062.9,3062.2,1e-08]
[1765555460939,0.20142797,3063.4,3062.2,1e-08]
[1765555460940,0.69062797,3063.4,3062.2,1e-08]
[1765555461533,0.4892,3063.3,3062.2,1e-08]
[1765555461838,0.01622797,3063.4,3062.3,0.592]
[1765555462040,0.01622797,3063.4,3062.7,13.06037156]
[1765555462350,0.01622797,3064.2,3062.7,13.06037156]
[1765555462351,0.4892,3065.0,3062.8,2.2710778]
[1765555462563,0.53338569,3064.8,3062.8,2.2730778]
[1765555462720,0.4926,3064.8,3062.9,0.002]
[1765555463060,0.4926,3064.8,3063.1,0.58047529]
[1765555463269,0.60822797,3065.3,3063.2,0.594]
[1765555463270,1.10082797,3065.3,3063.2,0.594]
[1765555463427,0.1852,3065.4,3063.2,0.594]
[1765555463428,0.4926,3065.1,3063.2,0.594]
[1765555463617,0.3884832,3065.0,3063.2,0.592]
[1765555463813,13.086608,3064.8,3063.2,0.592]
[1765555464125,6.54095415,3065.3,3062.1,0.002]
[1765555464126,0.04078702,3064.7,3062.1,0.002]
[1765555464326,0.04078702,3064.7,3062.4,7.27314874]
[1765555464327,2.845555,3064.7,3062.4,7.27314874]
[1765555464561,0.898104,3065.2,3062.4,7.27314874]
[1765555464562,0.4926,3065.1,3063.0,0.58047529]
[1765555464712,0.4926,3065.1,3063.4,7.27314874]
[1765555464913,0.4926,3065.7,3063.5,1.17247529]
[1765555465265,0.04077904,3065.3,3063.5,0.592]
[1765555465430,5.79463504,3065.3,3063.5,0.592]
[1765555465617,1.46606621,3065.2,3063.5,0.592]
[1765555465945,1.46606621,3065.2,3062.3,0.3531735]
[1765555465946,16.6721587,3065.1,3062.7,0.002]
[1765555466247,21.32018044,3065.0,3062.7,0.002]
[1765555466549,3.630359,3064.6,3062.6,13.060798]
[1765555466846,0.62125965,3064.9,3062.6,13.060798]
[1765555466847,2.524754,3064.4,3062.6,13.060798]
[1765555467058,3.26258539,3065.1,3062.6,13.060798]
[1765555467059,0.4926,3064.8,3062.7,0.002]
[1765555467361,0.4926,3064.8,3062.7,0.58247529]
[1765555467656,0.4926,3065.3,3063.7,0.58047529]
[1765555467815,0.4926,3065.3,3063.8,0.591]
[1765555468014,0.4926,3065.8,3063.8,0.593]
[1765555468235,0.04077372,3065.7,3064.0,0.58047529]
[1765555468435,0.04077372,3065.7,3064.1,1.69015457]
[1765555468436,0.4926,3065.7,3064.1,1.69015457]
[1765555469027,0.1962,3064.2,3063.9,6.52762818]
[1765555469348,5.13522405,3065.6,3063.9,6.52762818]
[1765555469349,4.371222,3065.1,3063.9,6.52762818]
[1765555469553,0.1962,3064.7,3063.9,6.52762818]
[1765555469731,0.1962,3065.0,3063.9,6.52762818]
[1765555469933,0.1962,3065.0,3063.8,3.26389276]
[1765555470139,16.806638,3064.7,3062.8,9.79494505]
[1765555470432,0.4437409,3064.6,3062.9,1.03859451]
[1765555470635,4.209603,3064.6,3062.9,1.03859451]
[1765555470835,0.4926,3064.6,3062.9,1.04059451]
[1765555471252,0.4926,3065.4,3063.7,8.7190063]
[1765555471559,0.23697904,3065.3,3063.8,1.46290063]
[1765555471868,0.1962,3065.3,3063.8,0.591]
[1765555472221,0.1962,3065.3,3063.9,13.05525636]
[1765555472456,0.1962,3065.3,3062.4,0.002]
[1765555472457,0.1962,3064.0,3062.4,0.002]
[1765555472753,3.79581022,3065.2,3063.8,6.52782489]
[1765555472754,2.62408,3065.1,3063.8,6.52782489]
[1765555472924,7.055367,3064.9,3063.8,6.52782489]
[1765555473124,0.04078569,3064.8,3062.8,0.58047529]
[1765555473322,4.83057,3064.6,3063.8,3.26384672]
[1765555473547,0.4926,3064.7,3063.8,6.52776734]
[1765555473937,0.1962,3065.3,3063.8,16.3195292]
[1765555474256,0.4926,3065.9,3064.1,0.58047529]
[1765555474455,0.06034533,3066.5,3064.1,0.58047529]
[1765555474456,0.4926,3065.6,3064.2,0.591]
[1765555474664,0.53337505,3065.6,3064.2,0.591]
[1765555474826,0.4926,3065.6,3064.2,0.591]
[1765555475029,8.77304738,3065.5,3064.2,0.591]
[1765555475350,6.842287,3065.5,3064.0,6.52741514]
[1765555475536,17.964125,3065.3,3064.0,6.52741514]
[1765555475737,6.87644,3065.1,3064.0,6.52741514]
[1765555475950,0.1962,3065.2,3064.0,9.79112271]
[1765555476165,0.6888,3065.2,3064.0,6.52741514]
[1765555476323,0.6888,3065.2,3063.6,16.32066845]
[1765555476729,0.1962,3065.2,3063.7,0.002]
[1765555477423,0.4926,3065.5,3063.7,0.58247529]
[1765555477623,4.641738,3065.6,3063.8,0.002]
[1765555477835,0.04077638,3065.5,3063.8,0.002]
[1765555478130,0.53337638,3065.5,3063.7,0.58047529]
[1765555478438,3.262217,3065.4,3063.6,13.05653476]
[1765555478638,4.5001,3065.3,3063.6,13.05653476]
[1765555478933,9.860138,3065.2,3063.6,13.05653476]
[1765555479124,0.0407817,3065.1,3063.6,9.79240107]
[1765555479327,7.375513,3065.0,3063.6,6.52826738]
[1765555479528,0.04078436,3064.9,3063.6,6.52826738]
[1765555479935,0.4926,3064.8,3063.6,6.52826738]
[1765555480136,0.4926,3064.8,3063.6,9.79240107]
[1765555480454,0.1962,3064.7,3063.6,9.79240107]
[1765555480772,0.1962,3064.7,3063.6,6.52826738]
[1765555480978,0.4926,3064.6,3063.6,6.52826738]
[1765555481271,16.924777,3064.5,3063.6,3.26413369]
[1765555481426,0.4926,3064.4,3063.6,3.26413369]
[1765555481762,0.4926,3064.4,3063.6,6.52826738]
[1765555482177,6.72212572,3064.7,3063.6,6.52826738]
[1765555482457,19.43753,3064.6,3063.6,0.591]
[1765555482625,0.1962,3064.7,3063.6,0.591]
[1765555482830,0.4926,3065.2,3063.6,0.591]
[1765555482831,0.1962,3065.1,3063.6,0.591]
[1765555483155,0.1962,3065.1,3063.7,0.002]
[1765555483332,0.59131661,3065.1,3063.7,0.002]
[1765555483539,0.59131661,3065.1,3063.6,0.591]
[1765555483540,1.12469831,3065.1,3063.6,0.591]
[1765555483852,4.3464529,3065.1,3063.6,0.591]
[1765555484166,0.4926,3065.0,3063.6,0.591]
[1765555484361,0.1962,3065.1,3063.6,0.593]
[1765555484537,0.6888,3065.1,3063.7,13.0561086]
[1765555484737,0.04077239,3065.8,3063.9,0.405504]
[1765555484979,13.214445,3065.9,3063.8,1.94718615]
[1765555485276,10.588957,3065.7,3063.9,0.002]
[1765555485468,5.113323,3065.7,3063.9,0.002]
[1765555485644,0.4926,3065.6,3063.9,0.002]
[1765555485847,0.4926,3065.6,3063.9,0.407504]
[1765555486048,0.4926,3065.6,3064.0,0.002]
[1765555486248,3.44768959,3066.1,3064.1,0.405504]
[1765555486249,0.4926,3066.0,3064.1,0.405504]
[1765555486470,0.53336973,3066.0,3064.2,13.05397816]
[1765555486674,0.001,3066.1,3065.3,8.71809763]
[1765555486954,0.001,3066.1,3065.9,8.71809763]
[1765555487173,0.4926,3068.1,3066.0,0.407504]
[1765555487371,0.4926,3068.1,3066.1,0.591]
[1765555487683,0.4926,3068.1,3066.5,8.71809763]
[1765555488070,0.4926,3068.1,3066.2,0.58147529]
[1765555488071,3.75194988,3068.1,3066.2,0.001]
[1765555488376,10.77331,3066.8,3065.2,0.591]
[1765555488584,0.001,3067.0,3065.6,8.71809763]
[1765555488756,0.001,3067.0,3065.8,0.405504]
[1765555488953,0.001,3067.0,3065.7,1.45328505]
[1765555489176,0.001,3067.0,3066.3,8.71809763]
[1765555489384,0.001,3067.0,3066.4,1.17047529]
[1765555489545,0.001,3067.0,3066.4,0.59]
[1765555490570,0.001,3067.0,3066.5,6.52209358]
[1765555490778,0.001,3067.0,3066.5,9.78314037]
[1765555491493,0.001,3067.0,3066.5,6.52209358]
[1765555491784,0.4976,3066.9,3066.5,3.26104679]
[1765555491946,0.4976,3066.9,3065.3,3.26226377]
[1765555492281,6.786112,3066.8,3065.5,0.59]
[1765555492489,12.5149,3066.6,3065.5,0.59]
[1765555492708,7.01905558,3066.8,3065.6,6.52400834]
[1765555492861,0.4976,3066.8,3065.6,6.52400834]
[1765555493202,17.792625,3066.6,3065.6,3.26200417]
[1765555493404,9.900313,3066.4,3065.6,3.26200417]
[1765555493577,7.539879,3066.4,3065.6,3.26200417]
[1765555493777,0.04076574,3066.3,3065.6,3.26200417]
[1765555493961,3.87291,3066.7,3065.6,6.52400834]
[1765555494294,0.4976,3066.6,3065.6,6.52400834]
[1765555494497,0.4976,3066.6,3065.0,3.26258098]
[1765555494498,3.26115314,3066.4,3065.0,3.26258098]
[1765555494808,8.896397,3066.2,3065.0,6.52522372]
[1765555494962,2.14007802,3066.3,3065.0,9.78786646]
[1765555495158,17.694759,3066.1,3065.0,6.52522372]
[1765555495392,15.531543,3065.9,3065.0,3.26258098]
[1765555495571,0.01958225,3066.3,3065.0,3.26258098]
[1765555495572,12.180098,3065.7,3065.0,3.26258098]
[1765555495767,12.180098,3065.7,3064.7,3.26295221]
[1765555495990,18.061498,3065.5,3064.1,0.59]
[1765555496273,1.8559098,3065.4,3064.9,3.26272637]
[1765555496475,5.825921,3065.5,3064.7,3.26273519]
[1765555496672,0.4976,3065.6,3064.8,3.26285052]
[1765555496960,0.4976,3065.6,3064.1,3.85360009]
[1765555496961,3.386895,3065.5,3064.1,3.85360009]
[1765555497161,3.386895,3065.5,3064.7,3.26295551]
[1765555497476,0.71465039,3065.4,3064.7,6.52591762]
[1765555497673,6.024585,3066.5,3065.0,8.71809763]
[1765555497867,12.083609,3066.3,3064.7,6.52584692]